bitfinex/quotes_BTCUSD_20250825
["timestamp","ask_amount","ask_price","bid_price","bid_amount"]
[1756141675015,0.54939572,112740.0,112730.0,0.16632]
[1756141675254,0.51741506,112730.0,112720.0,0.1774308]
[1756141675472,0.5433876,112730.0,112720.0,0.3435908]
[1756141675698,1.1509859,112730.0,112720.0,0.3435908]
[1756141675882,1.32920096,112730.0,112720.0,0.3435508]
[1756141676139,1.32920096,112730.0,112710.0,0.17744654]
[1756141676140,2.68078496,112730.0,112710.0,0.17744654]
[1756141676367,0.7133076,112730.0,112720.0,0.1774308]
[1756141676583,1.8957716,112730.0,112710.0,0.34356654]
[1756141676801,1.182464,112720.0,112710.0,0.34356654]
[1756141677015,1.20843654,112720.0,112710.0,0.34356654]
[1756141677233,1.38586734,112720.0,112710.0,0.17744654]
[1756141677448,0.8109859,112720.0,112710.0,0.34344654]
[1756141677664,1.00230331,112720.0,112710.0,0.17744654]
[1756141677898,0.99787776,112720.0,112700.0,0.17744826]
[1756141678124,0.56109774,112720.0,112710.0,0.16592]
[1756141678384,0.56109774,112720.0,112710.0,0.16692]
[1756141678603,0.56030322,112720.0,112710.0,0.34336654]
[1756141679474,1.34531658,112720.0,112710.0,0.34336654]
[1756141680327,0.51744654,112710.0,112700.0,0.17744826]
[1756141680596,2.51390971,112710.0,112690.0,0.31681966]
[1756141680815,1.96747736,112700.0,112690.0,0.41417966]
[1756141681048,0.80972375,112700.0,112690.0,0.41627966]
[1756141681269,0.02471039,112700.0,112690.0,0.41924966]
[1756141681495,0.80972375,112700.0,112690.0,0.41924966]
[1756141681749,0.7989017,112700.0,112690.0,0.41924966]
[1756141681978,0.82362273,112700.0,112690.0,0.41924966]
[1756141682189,0.82490273,112700.0,112690.0,0.41972947]
[1756141682625,0.82490273,112700.0,112690.0,0.41675947]
[1756141682846,0.82362273,112700.0,112690.0,0.41972947]
[1756141683829,0.80973439,112700.0,112690.0,0.41972947]
[1756141684056,0.78501336,112710.0,112700.0,0.17746228]
[1756141684290,1.96747736,112710.0,112700.0,0.17956228]
[1756141684507,1.96747736,112710.0,112700.0,0.18253228]
[1756141684729,1.96598338,112710.0,112700.0,0.18253228]
[1756141684956,1.96726338,112710.0,112700.0,0.18253228]
[1756141685181,2.18507101,112710.0,112700.0,0.17746228]
[1756141685405,1.40455163,112710.0,112700.0,0.17746228]
[1756141685656,2.18956499,112710.0,112700.0,0.17746228]
[1756141685911,2.19336499,112710.0,112700.0,0.1654]
[1756141686132,2.19336499,112710.0,112690.0,0.36080686]
[1756141686350,1.96747736,112700.0,112690.0,0.36080686]
[1756141686574,0.96375564,112700.0,112690.0,0.36080686]
[1756141686796,1.752569,112700.0,112690.0,0.16591981]
[1756141687097,3.11432197,112700.0,112690.0,0.00047981]
[1756141687557,3.45432197,112700.0,112690.0,0.00047981]
[1756141687997,3.45344197,112700.0,112690.0,0.00047981]
[1756141688227,3.45344197,112700.0,112690.0,0.17795784]
[1756141688462,3.28812197,112700.0,112690.0,0.17795784]
[1756141688681,3.45344197,112700.0,112690.0,0.00047981]
[1756141689586,3.45424197,112700.0,112690.0,0.00047981]
[1756141689929,3.28812197,112700.0,112690.0,0.00047981]
[1756141690147,3.45336197,112700.0,112690.0,0.00047981]
[1756141690806,3.45416197,112700.0,112690.0,0.00047981]
[1756141692212,3.45384197,112700.0,112690.0,0.00047981]
[1756141692437,3.45684197,112700.0,112690.0,0.00047981]
[1756141692659,3.45304197,112700.0,112690.0,0.00047981]
[1756141692876,3.45384197,112700.0,112690.0,0.00047981]
[1756141693091,3.45784197,112700.0,112690.0,0.00047981]
[1756141693319,3.29212197,112700.0,112690.0,0.00047981]
[1756141693562,3.45704197,112700.0,112690.0,0.00047981]
[1756141693780,3.46004197,112700.0,112690.0,0.00047981]
[1756141694436,1.72509525,112700.0,112690.0,0.00047981]
[1756141694680,3.45992197,112700.0,112690.0,0.00047981]
[1756141695345,2.33264633,112700.0,112690.0,0.18005784]
[1756141695567,2.50882861,112700.0,112690.0,0.18302784]
[1756141695785,2.50882861,112700.0,112690.0,0.25412947]
[1756141695786,2.33136633,112700.0,112690.0,0.25412947]
[1756141696224,2.51010861,112700.0,112690.0,0.25115947]
[1756141696443,2.32436633,112700.0,112690.0,0.25412947]
[1756141696660,2.32436633,112700.0,112690.0,0.25512947]
[1756141696881,2.32136633,112700.0,112690.0,0.25512947]
[1756141697102,2.32436633,112700.0,112690.0,0.25512947]
[1756141697344,2.32136633,112700.0,112690.0,0.25512947]
[1756141697568,1.53635297,112700.0,112690.0,0.25512947]
[1756141697790,2.32136633,112700.0,112690.0,0.25512947]
[1756141698010,1.53635297,112700.0,112690.0,0.41944947]
[1756141698233,2.32136633,112700.0,112690.0,0.41944947]
[1756141698454,2.32136633,112700.0,112690.0,0.41940947]
[1756141699348,1.13890233,112700.0,112690.0,0.41940947]
[1756141699568,1.12501336,112700.0,112690.0,0.41940947]
[1756141700031,1.12501336,112700.0,112690.0,0.18402784]
[1756141700258,1.30247564,112700.0,112690.0,0.18402784]
[1756141700485,1.30247564,112700.0,112690.0,0.34810784]
[1756141700702,1.12501336,112700.0,112690.0,0.34810784]
[1756141701594,0.34,112700.0,112690.0,0.34810784]
[1756141701822,1.12501336,112700.0,112690.0,0.18402784]
[1756141702048,1.30247564,112700.0,112690.0,0.34802784]
[1756141702307,3.435233,112700.0,112690.0,0.00147981]
[1756141702531,2.65021964,112700.0,112690.0,0.00147981]
[1756141702747,3.44912285,112700.0,112690.0,0.00147981]
[1756141703195,1.71509613,112700.0,112690.0,0.18192784]
[1756141703413,2.50010949,112700.0,112690.0,0.18402784]
[1756141703625,2.50010949,112700.0,112690.0,0.00147981]
[1756141703809,2.48621964,112700.0,112690.0,0.00147981]
[1756141704014,2.65013964,112700.0,112690.0,0.00147981]
[1756141704231,2.65313964,112700.0,112690.0,0.00147981]
[1756141705312,2.65313964,112700.0,112690.0,0.18108784]
[1756141705537,2.47139736,112700.0,112690.0,0.18425784]
[1756141705775,2.30747736,112700.0,112690.0,0.18425784]
[1756141706241,1.522464,112700.0,112690.0,0.25535947]
[1756141706456,0.34,112700.0,112690.0,0.27280849]
[1756141706689,0.34112972,112710.0,112700.0,0.17746228]
[1756141706903,1.36944596,112710.0,112700.0,0.17959228]
[1756141707117,1.36944596,112710.0,112700.0,0.18276228]
[1756141707356,1.38333512,112710.0,112700.0,0.18276228]
[1756141707753,1.38333512,112710.0,112700.0,0.34680228]
[1756141707754,1.98136652,112710.0,112700.0,0.34680228]
[1756141707974,1.19635316,112710.0,112700.0,0.34680228]
[1756141708200,1.98136652,112710.0,112700.0,0.3642513]
[1756141708424,0.01388916,112710.0,112700.0,0.3642513]
[1756141708661,0.01388916,112710.0,112700.0,0.79113605]
[1756141708911,0.01388916,112710.0,112700.0,0.45113605]
[1756141709131,0.01388916,112710.0,112700.0,0.45213605]
[1756141709357,0.01388916,112710.0,112700.0,0.45313605]
[1756141709578,0.01388916,112710.0,112700.0,0.45213605]
[1756141709815,0.01516916,112710.0,112700.0,0.28809605]
[1756141710054,0.79890252,112710.0,112700.0,0.3649313]
[1756141710510,0.01388916,112710.0,112700.0,0.3649313]
[1756141710744,0.01388916,112710.0,112700.0,0.45181605]
[1756141711219,0.01388916,112710.0,112700.0,0.45281605]
[1756141711434,0.01388916,112710.0,112700.0,0.45181605]
[1756141711644,0.01388916,112710.0,112700.0,0.45281605]
[1756141712110,0.504,112730.0,112720.0,0.1774308]
[1756141712367,1.522464,112730.0,112720.0,0.1795608]
[1756141712627,1.71382981,112730.0,112700.0,0.003]
[1756141712853,0.17744654,112710.0,112700.0,0.20105424]
[1756141713073,0.17744654,112710.0,112700.0,0.36490424]
[1756141713296,0.78501336,112710.0,112700.0,0.36490424]
[1756141713519,0.16368,112720.0,112710.0,0.17744654]
[1756141713739,1.182464,112720.0,112710.0,0.18274654]
[1756141713966,1.7011748,112720.0,112710.0,0.16364]
[1756141714417,1.523744,112720.0,112710.0,0.34321654]
[1756141714641,2.30747736,112720.0,112710.0,0.34638654]
[1756141715536,2.30747736,112720.0,112710.0,0.36383556]
[1756141715537,1.1389003,112720.0,112710.0,0.36383556]
[1756141716210,0.35388694,112720.0,112710.0,0.36383556]
[1756141716442,1.1389003,112720.0,112710.0,0.36383556]
[1756141716925,0.7989003,112720.0,112710.0,0.36483556]
[1756141717568,0.7989003,112720.0,112710.0,0.36583556]
[1756141718034,0.01388694,112720.0,112710.0,0.45272031]
[1756141719414,0.01388694,112720.0,112710.0,0.67096031]
[1756141719641,0.50008,112740.0,112730.0,0.19486408]
[1756141719869,0.78637336,112740.0,112730.0,0.35822408]
[1756141720347,0.78509336,112740.0,112730.0,0.36352408]
[1756141720830,8e-05,112740.0,112730.0,0.36352408]
[1756141721067,0.50322386,112740.0,112730.0,0.36352408]
[1756141721298,1.68568786,112740.0,112730.0,0.36352408]
[1756141721520,0.00322386,112740.0,112730.0,0.36352408]
[1756141721980,0.00222386,112740.0,112730.0,0.36352408]
[1756141722213,0.00022386,112740.0,112730.0,0.36452408]
[1756141722436,0.50022386,112740.0,112730.0,0.36452408]
[1756141722681,0.00022386,112740.0,112730.0,0.36552408]
[1756141723561,0.78523722,112740.0,112730.0,0.20216408]
[1756141723782,0.78523722,112740.0,112730.0,0.36552408]
[1756141725122,0.00022386,112740.0,112730.0,0.36552408]
[1756141725383,0.78523722,112740.0,112730.0,0.36552408]
[1756141725826,0.00022386,112740.0,112730.0,0.77051046]
[1756141726251,0.00022386,112740.0,112730.0,1.17051046]
[1756141726684,0.00022386,112740.0,112730.0,1.02051046]
[1756141726901,0.00022386,112740.0,112730.0,1.16847046]
[1756141727307,0.00022386,112740.0,112730.0,1.17347046]
[1756141727737,0.00022386,112740.0,112730.0,1.17247046]
[1756141727963,1e-08,112750.0,112740.0,1.0768617]
[1756141728225,1e-08,112750.0,112740.0,1.38728645]
[1756141728448,1e-08,112750.0,112740.0,0.60227309]
[1756141729109,1e-08,112750.0,112740.0,1.38728645]
[1756141729321,1e-08,112750.0,112740.0,1.38828645]
[1756141729799,1e-08,112750.0,112740.0,1.78828645]
[1756141730462,1e-08,112750.0,112740.0,1.78928645]
[1756141730683,1e-08,112750.0,112740.0,1.78828645]
[1756141730922,1e-08,112750.0,112740.0,1.78728645]
[1756141731137,1e-08,112750.0,112740.0,1.79128645]
[1756141731353,1e-08,112750.0,112740.0,2.13428645]
[1756141732290,1e-08,112750.0,112740.0,2.29756645]
[1756141734092,1e-08,112750.0,112740.0,2.13428645]
[1756141734317,1e-08,112750.0,112740.0,2.29752645]
[1756141735262,1e-08,112750.0,112740.0,2.13428645]
[1756141735486,1e-08,112750.0,112740.0,2.29752645]
[1756141737732,1e-08,112750.0,112740.0,3.56998981]
[1756141737953,1e-08,112750.0,112740.0,2.84881405]
[1756141738219,1e-08,112750.0,112740.0,2.87547505]
[1756141739320,1e-08,112750.0,112740.0,2.87147505]
[1756141739549,1e-08,112750.0,112740.0,2.87247505]
[1756141739767,1e-08,112750.0,112740.0,2.87543505]
[1756141741733,1e-08,112750.0,112740.0,3.66044841]
[1756141742211,1e-08,112750.0,112740.0,2.87543505]
[1756141742659,1e-08,112750.0,112740.0,2.87539505]
[1756141745712,1e-08,112750.0,112740.0,2.87535505]
[1756141746784,0.0004,112790.0,112780.0,0.19478542]
[1756141747035,0.00182386,112790.0,112780.0,1.56670352]
[1756141747472,0.00182386,112790.0,112780.0,1.96670352]
[1756141748313,0.00182386,112790.0,112780.0,1.18169016]
[1756141748946,0.00362386,112790.0,112780.0,1.18169016]
[1756141749665,0.00362386,112790.0,112780.0,1.22099163]
[1756141749873,0.00362386,112790.0,112780.0,1.24409987]
[1756141750109,0.00362386,112790.0,112780.0,1.22099163]
[1756141750382,0.00282386,112790.0,112780.0,1.22099163]
[1756141751135,0.00282386,112790.0,112780.0,1.05787163]
[1756141751362,0.00282386,112790.0,112780.0,1.22095163]
[1756141751795,0.01106068,112790.0,112780.0,1.22095163]
[1756141752925,0.01106367,112790.0,112780.0,1.22095163]
[1756141754153,0.01186367,112790.0,112780.0,1.22191163]
[1756141754386,0.01186367,112790.0,112780.0,0.82191163]
[1756141754602,0.01106367,112790.0,112780.0,0.82191163]
[1756141754782,0.01106367,112790.0,112780.0,1.22191163]
[1756141755252,0.01006367,112790.0,112780.0,1.22191163]
[1756141755488,0.01006367,112790.0,112780.0,1.22291163]
[1756141755930,0.01006367,112790.0,112780.0,0.69668541]
[1756141755931,0.81374452,112790.0,112780.0,0.69668541]
[1756141756139,0.81374452,112790.0,112780.0,0.67923639]
[1756141756573,0.81374452,112790.0,112780.0,0.69668541]
[1756141756793,0.81374452,112790.0,112780.0,0.69468541]
[1756141757250,0.81474452,112790.0,112780.0,0.42598542]
[1756141758084,0.81474452,112790.0,112780.0,0.2455364]
[1756141758287,1.00859772,112790.0,112780.0,0.1773364]
[1756141758525,1.00859772,112790.0,112780.0,0.3403364]
[1756141758732,1.35159772,112790.0,112780.0,0.163]
[1756141759161,0.1803364,112780.0,112770.0,0.17735213]
[1756141759371,1.02035213,112770.0,112760.0,0.24556786]
[1756141759583,2.51443193,112770.0,112760.0,0.34032786]
[1756141760013,2.51443193,112770.0,112760.0,0.17736786]
[1756141760228,2.51443193,112770.0,112750.0,0.17734027]
[1756141760468,2.14539533,112760.0,112750.0,0.17734027]
[1756141760679,0.80337599,112760.0,112750.0,0.34034027]
[1756141760890,0.78684347,112760.0,112750.0,0.34034027]
[1756141761986,0.8098747,112760.0,112750.0,0.34034027]
[1756141762647,0.8098747,112760.0,112750.0,0.34030027]
[1756141762862,0.98724256,112760.0,112750.0,0.34030027]
[1756141763080,1.34374831,112760.0,112750.0,0.34030027]
[1756141763288,1.1498747,112760.0,112750.0,0.34030027]
[1756141763740,1.1498747,112760.0,112750.0,0.17734027]
[1756141763946,1.1498747,112760.0,112750.0,0.34030027]
[1756141764364,1.1498747,112760.0,112750.0,0.17734027]
[1756141764579,1.1498747,112760.0,112730.0,0.24851669]
[1756141764580,0.003,112740.0,112730.0,0.24851669]
[1756141764784,0.78904347,112740.0,112730.0,0.41147669]
[1756141765002,0.00128,112740.0,112730.0,0.41147669]
[1756141765208,0.00128,112740.0,112730.0,0.41346669]
[1756141765412,0.79864614,112750.0,112740.0,0.17739932]
[1756141765641,0.01516267,112750.0,112740.0,0.19484834]
[1756141766448,0.01516267,112750.0,112740.0,0.20000834]
[1756141766662,0.78604347,112750.0,112740.0,0.35780834]
[1756141766879,0.00128,112750.0,112740.0,0.35780834]
[1756141767087,0.78604347,112750.0,112740.0,0.35780834]
[1756141767720,0.78676347,112750.0,112740.0,0.34035932]
[1756141767929,0.78676347,112750.0,112740.0,0.17839932]
[1756141768162,0.96414706,112750.0,112740.0,0.34131932]
[1756141768366,0.78676347,112750.0,112740.0,0.34131932]
[1756141769004,0.78676347,112750.0,112740.0,0.34231932]
[1756141769659,0.78604347,112750.0,112740.0,0.34131932]
[1756141769863,0.79992579,112750.0,112740.0,0.34131932]
[1756141770123,0.79992579,112750.0,112740.0,0.34031932]
[1756141770551,0.98030938,112750.0,112740.0,0.17739932]
[1756141770778,0.98102938,112750.0,112740.0,0.34031932]
[1756141771826,0.80364579,112750.0,112740.0,0.17739932]
[1756141772034,0.98102938,112750.0,112740.0,0.34031932]
[1756141772884,0.18039932,112740.0,112730.0,0.07110163]
[1756141773094,0.96724279,112740.0,112730.0,0.17741506]
[1756141773319,0.96724279,112740.0,112730.0,0.34029506]
[1756141773534,0.96724279,112740.0,112720.0,0.25448816]
[1756141773773,0.78776347,112730.0,112720.0,0.25463202]
[1756141774032,0.78904347,112730.0,112720.0,0.41751202]
[1756141774260,1.12776347,112740.0,112730.0,0.17741506]
[1756141774495,0.34128,112740.0,112730.0,0.17741506]
[1756141774717,1.12604347,112740.0,112730.0,0.18257506]
[1756141774932,0.34,112740.0,112730.0,0.18257506]
[1756141775373,0.343,112740.0,112730.0,0.18257506]
[1756141775790,1.12776347,112740.0,112730.0,0.18257506]
[1756141776260,0.02668,112750.0,112740.0,0.17739932]
[1756141776474,0.84,112750.0,112740.0,0.36284834]
[1756141776708,1.19762775,112750.0,112740.0,0.36284834]
[1756141776921,0.79992722,112750.0,112740.0,0.35768834]
[1756141777390,0.01388375,112750.0,112740.0,0.36284834]
[1756141777609,0.01388375,112750.0,112740.0,0.36384834]
[1756141778739,0.79864722,112750.0,112740.0,0.36384834]
[1756141779276,0.79864722,112750.0,112740.0,0.36484834]
[1756141779495,0.81744972,112750.0,112740.0,0.36484834]
[1756141779856,0.01388375,112750.0,112740.0,0.36484834]
[1756141780049,0.81744972,112750.0,112740.0,0.36484834]
[1756141780482,0.81744972,112750.0,112740.0,0.36470487]
[1756141781118,0.01388375,112750.0,112740.0,0.20186487]
[1756141781326,0.81823972,112750.0,112740.0,0.35950487]
[1756141781533,0.81823972,112750.0,112740.0,0.36165487]
[1756141781721,0.81823972,112750.0,112740.0,0.36466487]
[1756141781938,0.81744972,112750.0,112740.0,0.36466487]
[1756141782517,0.75807496,112750.0,112740.0,0.36466487]
[1756141783392,0.36303123,112760.0,112750.0,0.17738359]
[1756141783562,2.3520612,112760.0,112750.0,0.17953359]
[1756141783883,1.72714309,112760.0,112750.0,0.34014359]
[1756141784082,2.53070906,112760.0,112750.0,0.34014359]
[1756141784295,2.3533412,112760.0,112750.0,0.34014359]
[1756141784502,2.3533412,112760.0,112750.0,0.17738359]
[1756141784750,2.3533412,112760.0,112750.0,0.34014359]
[1756141785155,2.3533412,112760.0,112750.0,0.34530359]
[1756141785395,2.3533412,112760.0,112750.0,0.18254359]
[1756141785613,2.3533412,112760.0,112750.0,0.34010359]
[1756141785818,2.53070906,112760.0,112750.0,0.17738359]
[1756141786052,2.53070906,112760.0,112750.0,0.34010359]
[1756141786468,2.54459174,112760.0,112750.0,0.34010359]
[1756141786676,2.36722388,112760.0,112750.0,0.34010359]
[1756141787302,1.18475988,112760.0,112750.0,0.34526359]
[1756141787503,1.18047988,112760.0,112750.0,0.34526359]
[1756141787954,0.35388268,112760.0,112750.0,0.36271261]
[1756141788609,0.35388268,112760.0,112750.0,0.36267261]
[1756141789300,0.01388268,112760.0,112750.0,0.34033424]
[1756141789516,0.01388268,112760.0,112750.0,0.50401424]
[1756141790167,0.01388268,112760.0,112750.0,0.59089899]
[1756141790380,0.01388268,112760.0,112750.0,0.59085899]
[1756141791014,0.81744865,112760.0,112750.0,0.51975736]
[1756141791452,0.81872865,112760.0,112750.0,0.42771261]
[1756141791669,0.81872865,112760.0,112750.0,0.19683261]
[1756141791918,1.62229462,112760.0,112750.0,0.35947261]
[1756141792131,1.7857798,112760.0,112750.0,0.19683261]
[1756141792342,0.80484597,112760.0,112750.0,0.35943261]
[1756141792557,0.00128,112760.0,112750.0,0.35943261]
[1756141792778,1.60841194,112760.0,112750.0,0.35743261]
[1756141793014,1.7887798,112760.0,112750.0,0.17738359]
[1756141793277,1.7895798,112760.0,112750.0,0.33998359]
[1756141793549,2.15439635,112760.0,112750.0,0.33998359]
[1756141793776,1.17266252,112760.0,112750.0,0.33998359]
[1756141794007,0.343,112760.0,112750.0,0.34514359]
[1756141794231,1.14784597,112760.0,112750.0,0.34514359]
[1756141794676,1.14784597,112760.0,112750.0,0.34299359]
[1756141795357,1.14784597,112760.0,112750.0,0.33994359]
[1756141795577,1.18654769,112760.0,112750.0,0.33994359]
[1756141796266,1.99011366,112760.0,112750.0,0.33994359]
[1756141796707,1.18654769,112760.0,112750.0,0.33994359]
[1756141798371,1.15872823,112760.0,112750.0,0.34288359]
[1756141798596,1.15744823,112760.0,112750.0,0.36231261]
[1756141800138,0.35388226,112760.0,112750.0,0.36231261]
[1756141800371,0.35388226,112760.0,112750.0,0.36431261]
[1756141800372,0.01388226,112760.0,112750.0,0.36431261]
[1756141800834,1.1663869,112770.0,112760.0,0.19481688]
[1756141801080,1.17466009,112770.0,112760.0,0.19973688]
[1756141801323,0.36809412,112770.0,112760.0,0.19973688]
[1756141801572,1.17166009,112770.0,112760.0,0.19973688]
[1756141802055,1.1716601,112770.0,112760.0,0.19973688]
[1756141802626,0.34,112770.0,112760.0,0.19973688]
[1756141802915,1.14356597,112770.0,112760.0,0.19973688]
[1756141803512,1.1518391,112770.0,112760.0,0.36217688]
[1756141803785,1.14356597,112770.0,112760.0,0.36217688]
[1756141804065,1.16327087,112770.0,112760.0,0.36317688]
[1756141804363,1.16399087,112770.0,112760.0,0.35825688]
[1756141804967,1.16399087,112770.0,112760.0,0.36317688]
[1756141805423,1.16399087,112770.0,112760.0,0.36417688]
[1756141805937,0.82399087,112770.0,112760.0,0.36417688]
[1756141806510,0.0197049,112770.0,112760.0,0.36417688]
[1756141806728,0.003,112780.0,112770.0,0.19480115]
[1756141807008,1.18632783,112780.0,112770.0,0.19480115]
[1756141807334,1.21115343,112780.0,112770.0,0.19480115]
[1756141807817,2.0147194,112780.0,112770.0,0.19972115]
[1756141808051,2.0147194,112780.0,112770.0,0.19480115]
[1756141808276,1.998169,112780.0,112770.0,0.19480115]
[1756141808770,2.35204981,112780.0,112770.0,0.19480115]
[1756141809007,2.37267445,112780.0,112770.0,0.19480115]
[1756141809646,2.36439925,112780.0,112770.0,0.19480115]
[1756141809890,2.37267433,112780.0,112770.0,0.19480115]
[1756141810097,2.37267433,112780.0,112770.0,0.35712115]
[1756141810310,1.56910836,112780.0,112770.0,0.35712115]
[1756141810523,2.37267433,112780.0,112770.0,0.35712115]
[1756141810740,2.55001073,112780.0,112770.0,0.19480115]
[1756141810963,2.55001073,112780.0,112770.0,0.17735213]
[1756141811196,2.55001073,112780.0,112770.0,0.33963213]
[1756141811416,2.55001073,112780.0,112770.0,0.17735213]
[1756141811654,0.34,112770.0,112760.0,0.35709688]
[1756141811872,2.32730997,112770.0,112760.0,0.35709688]
[1756141812085,0.34128,112770.0,112760.0,0.35709688]
[1756141812293,1.14484597,112770.0,112760.0,0.35709688]
[1756141812518,1.14784597,112770.0,112760.0,0.35709688]
[1756141812728,2.5084621,112770.0,112760.0,0.33960786]
[1756141812957,2.6707021,112770.0,112760.0,0.17736786]
[1756141813138,0.52036786,112760.0,112750.0,0.33962359]
[1756141813376,3.3112438,112760.0,112750.0,0.33962359]
[1756141813584,2.1295798,112760.0,112750.0,0.33962359]
[1756141814264,2.1295798,112760.0,112750.0,0.17738359]
[1756141814493,2.1295798,112760.0,112740.0,0.17725585]
[1756141814494,0.52038359,112750.0,112740.0,0.17739932]
[1756141814711,0.003,112740.0,112730.0,0.31675669]
[1756141814953,1.32524529,112740.0,112730.0,0.47895669]
[1756141815227,0.003,112730.0,112720.0,0.17741662]
[1756141815440,0.80784597,112730.0,112720.0,0.33961662]
[1756141815652,0.80784597,112730.0,112720.0,0.35706564]
[1756141815869,0.80656597,112730.0,112720.0,0.36198564]
[1756141816087,0.34,112740.0,112730.0,0.17741506]
[1756141816316,0.34,112740.0,112730.0,0.27088571]
[1756141816535,0.34,112740.0,112730.0,0.35777046]
[1756141817622,1.14356597,112740.0,112730.0,0.43308571]
[1756141818242,1.14356597,112740.0,112730.0,0.43408571]
[1756141818672,1.14356597,112740.0,112730.0,0.36498408]
[1756141819123,0.01388401,112750.0,112740.0,0.19484834]
[1756141819358,0.34,112750.0,112740.0,0.19682834]
[1756141819580,0.34,112750.0,112740.0,0.19976834]
[1756141819797,0.18484672,112780.0,112760.0,0.19481688]
[1756141820007,0.96944454,112780.0,112770.0,0.33947213]
[1756141820238,0.96944454,112780.0,112770.0,0.17735213]
[1756141820239,2.34495086,112780.0,112770.0,0.17735213]
[1756141820455,1.39768944,112780.0,112770.0,0.17735213]
[1756141820681,2.52228726,112780.0,112770.0,0.17735213]
[1756141821114,0.343,112770.0,112760.0,0.17736786]
[1756141821333,2.65081395,112770.0,112760.0,0.17636786]
[1756141821560,0.003,112760.0,112750.0,0.33950359]
[1756141821781,0.003,112750.0,112740.0,0.26308834]
[1756141822008,0.003,112750.0,112740.0,0.26506834]
[1756141822009,0.78759782,112750.0,112740.0,0.26506834]
[1756141822226,1.12887782,112750.0,112740.0,0.19484834]
[1756141822446,1.12887782,112750.0,112740.0,0.35692834]
[1756141822930,1.12887782,112750.0,112740.0,0.35890834]
[1756141823151,1.12887782,112750.0,112740.0,0.36284834]
[1756141823966,1.12759782,112750.0,112740.0,0.36284834]
[1756141824519,1.12759782,112750.0,112740.0,0.45073309]
[1756141824736,0.34,112750.0,112740.0,0.45073309]
[1756141824938,0.34,112750.0,112740.0,0.44873309]
[1756141825143,0.34,112750.0,112740.0,0.44973309]
[1756141825337,0.34,112750.0,112740.0,0.44873309]
[1756141825542,0.34,112750.0,112740.0,0.28665309]
[1756141825754,0.34,112750.0,112740.0,0.45069309]
[1756141827166,0.34,112750.0,112740.0,0.36380834]
[1756141827375,1.12459782,112750.0,112740.0,0.36580834]
[1756141827575,1.12459782,112750.0,112740.0,0.36576834]
[1756141828560,1.12459782,112750.0,112740.0,0.36176834]
[1756141828769,0.34,112750.0,112740.0,0.36376834]
[1756141828971,1.12459782,112750.0,112740.0,0.36276834]
[1756141829418,1.12531782,112750.0,112740.0,0.36376834]
[1756141829849,0.34,112750.0,112740.0,0.36376834]
[1756141830063,1.12831782,112750.0,112740.0,0.35784834]
[1756141830332,1.12831782,112750.0,112740.0,0.35884834]
[1756141831268,1.12831782,112750.0,112740.0,0.36072834]
[1756141831484,0.343,112750.0,112740.0,0.36367834]
[1756141831895,0.34,112750.0,112740.0,0.36367834]
[1756141832312,1.12759782,112770.0,112760.0,0.17736786]
[1756141832528,2.31006182,112770.0,112760.0,0.36164688]
[1756141832935,2.31134182,112770.0,112760.0,0.36164688]
[1756141833359,2.31206182,112770.0,112760.0,0.36164688]
[1756141834205,2.31434182,112770.0,112760.0,0.35673688]
[1756141834418,2.31434182,112770.0,112760.0,0.35869688]
[1756141834634,2.31434182,112770.0,112760.0,0.36164688]
[1756141834834,1.184464,112770.0,112760.0,0.36164688]
[1756141835047,0.342,112770.0,112760.0,0.36164688]
[1756141835269,0.341,112770.0,112760.0,0.36164688]
[1756141835452,0.341,112770.0,112760.0,0.44853163]
[1756141835665,0.34,112770.0,112760.0,0.44853163]
[1756141836677,0.34,112770.0,112760.0,0.44953163]
[1756141836888,0.34,112770.0,112760.0,0.44853163]
[1756141837121,0.34,112770.0,112760.0,0.28661163]
[1756141837336,1.12459782,112770.0,112760.0,0.44845163]
[1756141837579,1.12459782,112770.0,112760.0,0.35857688]
[1756141837838,1.12459782,112770.0,112760.0,0.36152688]
[1756141838302,1.12459782,112770.0,112760.0,0.36352688]
[1756141838551,0.80746837,112780.0,112770.0,0.19480115]
[1756141838776,0.80746837,112780.0,112770.0,0.19676115]
[1756141838993,0.80746837,112780.0,112770.0,0.19971115]
[1756141839207,0.80874837,112780.0,112770.0,0.19480115]
[1756141839657,0.80874837,112780.0,112770.0,0.19580115]
[1756141839879,0.80874837,112780.0,112770.0,0.19876115]
[1756141840080,0.02415055,112780.0,112770.0,0.20171115]
[1756141840325,0.80874837,112780.0,112770.0,0.20171115]
[1756141840698,0.80874837,112780.0,112770.0,0.19680115]
[1756141841353,0.80774837,112780.0,112770.0,0.19680115]
[1756141841809,0.80774837,112780.0,112770.0,0.19580115]
[1756141842031,0.80774837,112780.0,112770.0,0.19480115]
[1756141843321,0.80774837,112780.0,112770.0,0.19971115]
[1756141843911,0.02315055,112780.0,112770.0,0.19480115]
[1756141844124,0.80774837,112780.0,112770.0,0.19480115]
[1756141844329,0.03703128,112780.0,112770.0,0.35844115]
[1756141844546,0.8203491,112780.0,112770.0,0.36139115]
[1756141845235,0.03575128,112780.0,112770.0,0.36139115]
[1756141845462,0.8203491,112780.0,112770.0,0.36139115]
[1756141845907,0.80646837,112780.0,112770.0,0.36139115]
[1756141846131,0.80774837,112780.0,112770.0,0.36135115]
[1756141846347,0.80774837,112780.0,112770.0,0.35644115]
[1756141847364,0.82643329,112780.0,112770.0,0.35644115]
[1756141849291,0.84031415,112780.0,112770.0,0.35644115]
[1756141849782,0.84031415,112780.0,112770.0,0.19480115]
[1756141850051,1.01845055,112780.0,112770.0,0.33891213]
[1756141850292,1.01845055,112780.0,112770.0,0.17735213]
[1756141850572,0.34,112770.0,112760.0,0.19481688]
[1756141850776,1.32491487,112770.0,112760.0,0.17736786]
[1756141851033,0.003,112760.0,112750.0,0.58541106]
[1756141851266,1.99002674,112760.0,112750.0,0.76929008]
[1756141851471,0.80756274,112760.0,112750.0,0.70105008]
[1756141851980,0.80756274,112760.0,112750.0,0.69909008]
[1756141852161,0.80756274,112760.0,112750.0,0.70105008]
[1756141852617,0.80756274,112760.0,112750.0,0.70205008]
[1756141853507,0.00428,112760.0,112750.0,0.63094845]
[1756141853730,0.80756274,112760.0,112750.0,0.63094845]
[1756141854651,0.80756274,112760.0,112750.0,0.36224845]
[1756141855296,2.12821334,112760.0,112750.0,0.17838359]
[1756141855496,2.12821334,112760.0,112750.0,0.33982359]
[1756141855618,2.142096,112760.0,112750.0,0.34082359]
[1756141856041,2.12616814,112760.0,112750.0,0.34082359]
[1756141856473,1.3228854,112760.0,112750.0,0.34082359]
[1756141856831,1.3228854,112760.0,112750.0,0.17838359]
[1756141857013,2.12616814,112760.0,112750.0,0.33982359]
[1756141857240,2.303536,112760.0,112750.0,0.33882359]
[1756141857438,0.52038359,112750.0,112740.0,0.17739932]
[1756141857730,2.50741033,112750.0,112740.0,0.33879932]
[1756141857934,1.32494633,112750.0,112740.0,0.33879932]
[1756141858149,1.48634633,112750.0,112740.0,0.17739932]
[1756141858354,1.32494633,112750.0,112740.0,0.33879932]